bitfinex/quotes_SOLUSD_20250612
["timestamp","ask_amount","ask_price","bid_price","bid_amount"]
[1749709916297,13.86396763,159.31,159.29,30.96]
[1749709916704,13.86396763,159.32,159.29,30.96]
[1749709916916,13.86396763,159.33,159.29,30.96]
[1749709919482,13.86396763,159.32,159.29,30.96]
[1749709920286,26.0,159.35,159.29,30.96]
[1749709920489,13.86396763,159.33,159.29,44.82396763]
[1749709923303,1.5308,159.36,159.31,13.86396763]
[1749709923304,13.86396763,159.36,159.31,13.86396763]
[1749709923478,13.86396763,159.36,159.32,25.52]
[1749709924288,13.86396763,159.35,159.32,25.52]
[1749709925709,13.86396763,159.37,159.32,39.38396763]
[1749709926381,13.86396763,159.37,159.33,13.86396763]
[1749709926601,13.86396763,159.37,159.32,25.52]
[1749709926813,13.86396763,159.38,159.33,13.86396763]
[1749709927514,13.86396763,159.38,159.34,13.86396763]
[1749709927694,13.86396763,159.38,159.35,25.52]
[1749709928011,15.47966763,159.44,159.35,39.38396763]
[1749709928012,1.6157,159.44,159.35,39.38396763]
[1749709928187,1.6157,159.44,159.35,25.52]
[1749709928188,13.86396763,159.38,159.35,25.52]
[1749709929705,13.86396763,159.4,159.35,25.52]
[1749709929915,13.86396763,159.4,159.36,13.86396763]
[1749709932416,41.47966763,159.44,159.36,13.86396763]
[1749709932600,13.86396763,159.4,159.36,13.86396763]
[1749709934728,13.86396763,159.42,159.37,13.86396763]
[1749709935014,13.86396763,159.42,159.38,44.82396763]
[1749709935186,13.86396763,159.42,159.38,30.96]
[1749709935589,13.86396763,159.41,159.38,30.96]
[1749709937506,1.6157,159.44,159.38,30.96]
[1749709937507,13.86396763,159.4,159.38,30.96]
[1749709939331,13.86396763,159.41,159.38,30.96]
[1749709940295,1.6157,159.44,159.38,30.96]
[1749709940494,13.86396763,159.41,159.38,30.96]
[1749709943532,1.6157,159.44,159.38,30.96]
[1749709943736,13.86396763,159.42,159.38,44.82396763]
[1749709943913,13.86396763,159.42,159.38,30.96]
[1749709944228,13.86396763,159.42,159.38,44.82396763]
[1749709944741,13.86396763,159.43,159.39,13.86396763]
[1749709945040,13.86396763,159.43,159.4,25.52]
[1749709945530,26.28432314,159.47,159.4,25.52]
[1749709945713,13.86396763,159.43,159.4,25.52]
[1749709947536,26.28432314,159.47,159.4,25.52]
[1749709947834,13.86396763,159.43,159.4,25.52]
[1749709949422,13.86396763,159.41,159.4,25.52]
[1749709951540,150.6109,159.48,159.4,39.38396763]
[1749709951843,13.86396763,159.45,159.4,25.52]
[1749709952051,13.86396763,159.45,159.41,13.86396763]
[1749709955838,13.86396763,159.45,159.4,39.38396763]
[1749709956055,13.86396763,159.45,159.41,13.86396763]
[1749709956223,150.6109,159.48,159.41,13.86396763]
[1749709956541,13.86396763,159.46,159.41,13.86396763]
[1749709957041,13.86396763,159.45,159.41,13.86396763]
[1749709958827,13.86396763,159.46,159.41,13.86396763]
[1749709959627,13.86396763,159.46,159.42,13.86396763]
[1749709959817,13.86396763,159.46,159.43,25.52]
[1749709960023,13.86396763,159.47,159.43,25.52]
[1749709960315,1.5921,159.52,159.44,13.86396763]
[1749709960548,13.86396763,159.48,159.44,13.86396763]
[1749709960851,13.86396763,159.48,159.43,39.38396763]
[1749709961822,13.86396763,159.47,159.43,39.38396763]
[1749709962220,13.86396763,159.48,159.44,13.86396763]
[1749709964024,13.86396763,159.48,159.44,32.51361649]
[1749709969553,13.86396763,159.49,159.44,32.51361649]
[1749709970531,6.2604807,159.52,159.47,13.86396763]
[1749709970732,13.86396763,159.51,159.48,30.94]
[1749709970931,1.5921,159.52,159.48,30.94]
[1749709971234,13.86396763,159.52,159.48,44.80396763]
[1749709972254,11.2501807,159.54,159.48,44.80396763]
[1749709972439,18.53234833,159.53,159.48,44.80396763]
[1749709972629,13.86396763,159.53,159.48,30.94]
[1749709972963,13.86396763,159.53,159.48,44.80396763]
[1749709973264,1.6123,159.56,159.49,18.64964886]
[1749709973431,1.6123,159.56,159.49,32.51361649]
[1749709973749,13.86396763,159.54,159.49,32.51361649]
[1749709973956,13.86396763,159.53,159.49,18.64964886]
[1749709974161,1.6123,159.56,159.49,18.64964886]
[1749709974363,13.86396763,159.52,159.48,30.94]
[1749709974669,13.86396763,159.52,159.48,44.80396763]
[1749709974959,13.86396763,159.52,159.48,30.94]
[1749709975133,7.87954823,159.56,159.48,30.94]
[1749709975134,13.86396763,159.5,159.48,30.94]
[1749709975331,13.86396763,159.49,159.48,5.44]
[1749709975541,13.86396763,159.49,159.48,30.94]
[1749709975744,13.86396763,159.49,159.48,5.44]
[1749709975955,13.86396763,159.49,159.48,30.94]
[1749709979363,13.86396763,159.49,159.48,5.44]
[1749709979751,13.86396763,159.49,159.48,30.94]
[1749709979948,13.86396763,159.49,159.48,5.44]
[1749709980461,14.14829077,159.49,159.48,5.44]
[1749709982254,20.41827634,159.49,159.48,5.44]
[1749709982446,25.0883886,159.49,159.48,5.44]
[1749709982656,51.0883886,159.49,159.48,5.44]
[1749709983049,26.0,159.46,159.43,30.94]
[1749709983359,13.86396763,159.44,159.43,5.44]
[1749709984663,26.0,159.46,159.43,5.44]
[1749709984961,13.86396763,159.44,159.43,5.44]
[1749709988954,13.86396763,159.44,159.43,30.94]
[1749709991182,13.86396763,159.44,159.43,5.44]
[1749709991384,35.51528709,159.44,159.43,5.44]
[1749709991751,29.24333526,159.44,159.43,5.44]
[1749709991973,29.5276584,159.44,159.43,5.44]
[1749709992160,34.20543319,159.44,159.43,5.44]
[1749709992647,15.66369077,159.44,159.43,5.44]
[1749709992846,20.34146556,159.44,159.43,5.44]
[1749709993051,13.86396763,159.44,159.43,5.44]
[1749709993472,27.72793526,159.44,159.43,5.44]
[1749709993677,28.0122584,159.44,159.43,5.44]
[1749709993858,32.69003319,159.44,159.43,5.44]
[1749709994172,38.96198502,159.44,159.43,5.44]
[1749709994385,34.28421023,159.44,159.43,5.44]
[1749709994569,38.96198502,159.44,159.43,5.44]
[1749709994762,34.28421023,159.44,159.43,5.44]
[1749709995080,38.96198502,159.44,159.43,5.44]
[1749709995786,34.28421023,159.44,159.43,5.44]
[1749709995977,44.05847883,159.44,159.43,5.44]
[1749709996286,26.0,159.41,159.38,5.44]
[1749709996489,13.86396763,159.39,159.38,5.44]
[1749709999068,13.86396763,159.39,159.38,30.96]
[1749709999475,13.86396763,159.39,159.38,5.44]
[1749710002767,14.14829077,159.39,159.38,5.44]
[1749710005392,20.42221008,159.39,159.38,5.44]
[1749710005778,26.0,159.36,159.32,30.96]
[1749710005970,13.86396763,159.33,159.32,30.96]
[1749710007794,13.86396763,159.33,159.32,5.44]
[1749710007994,13.86396763,159.33,159.32,30.96]
[1749710008370,26.0,159.36,159.32,30.96]
[1749710008575,13.86396763,159.33,159.32,30.96]
[1749710011989,26.0,159.36,159.32,30.96]
[1749710012180,13.86396763,159.33,159.32,30.96]
[1749710015109,13.86396763,159.33,159.32,5.44]
[1749710020011,0.28432314,159.35,159.32,5.44]
[1749710020191,13.86396763,159.33,159.32,5.44]
[1749710021380,13.86396763,159.37,159.32,19.30396763]
[1749710021697,13.86396763,159.38,159.33,39.38396763]
[1749710023492,26.0,159.4,159.34,13.86396763]
[1749710023493,13.86396763,159.39,159.34,13.86396763]
[1749710024597,13.86396763,159.4,159.36,13.86396763]
[1749710024907,13.86396763,159.4,159.37,25.52]
[1749710026611,13.86396763,159.39,159.37,25.52]
[1749710026998,13.86396763,159.4,159.37,25.52]
[1749710027194,26.0,159.41,159.37,25.52]
[1749710027405,13.86396763,159.4,159.37,25.52]
[1749710028212,149.1,159.44,159.37,39.38396763]
[1749710028396,13.86396763,159.43,159.38,13.86396763]
[1749710028915,13.86396763,159.43,159.39,13.86396763]
[1749710029099,13.86396763,159.43,159.4,25.52]
[1749710029418,13.86396763,159.43,159.41,5.44]
[1749710030611,13.86396763,159.44,159.41,5.44]
[1749710031304,4.66737163,159.46,159.41,5.44]
[1749710031613,13.86396763,159.44,159.41,5.44]
[1749710033591,13.86396763,159.45,159.41,5.44]
[1749710034214,13.86396763,159.45,159.41,19.30396763]
[1749710034919,13.86396763,159.46,159.41,19.30396763]
[1749710035621,13.86396763,159.45,159.41,19.30396763]
[1749710036315,13.86396763,159.43,159.41,5.44]
[1749710036515,4.66873364,159.48,159.41,30.96]
[1749710036516,13.86396763,159.42,159.41,30.96]
[1749710036824,26.0,159.46,159.41,30.96]
[1749710037008,13.86396763,159.42,159.41,30.96]
[1749710039627,13.86396763,159.42,159.41,5.44]
[1749710039828,13.86396763,159.42,159.41,30.96]
[1749710041220,13.86396763,159.43,159.41,30.96]
[1749710041919,13.86396763,159.42,159.41,30.96]
[1749710043043,13.86396763,159.43,159.41,30.96]
[1749710043734,13.86396763,159.42,159.41,30.96]
[1749710045229,26.0,159.44,159.41,5.44]
[1749710045436,13.86396763,159.42,159.41,30.96]
[1749710047333,13.86396763,159.43,159.41,30.96]
[1749710047715,13.86396763,159.42,159.41,30.96]
[1749710047925,13.86396763,159.42,159.41,30.94]
[1749710048133,13.86396763,159.42,159.41,5.44]
[1749710049016,13.86396763,159.43,159.41,5.44]
[1749710049232,13.86396763,159.43,159.42,25.5]
[1749710049932,26.0,159.44,159.42,25.5]
[1749710049933,13.86396763,159.44,159.42,25.5]
[1749710050234,4.66506661,159.48,159.42,39.36396763]
[1749710050410,13.86396763,159.46,159.42,39.36396763]
[1749710052338,13.86396763,159.46,159.42,25.5]
[1749710054414,13.86396763,159.46,159.42,39.36396763]
[1749710054738,13.86396763,159.47,159.42,39.36396763]
[1749710054922,13.86396763,159.48,159.44,13.86396763]
[1749710055112,13.86396763,159.47,159.45,25.5]
[1749710055317,4.9183655,159.52,159.46,39.36396763]
[1749710055516,13.86396763,159.5,159.47,25.5]
[1749710056430,13.86396763,159.49,159.47,25.5]
[1749710056815,13.86396763,159.48,159.47,25.5]
[1749710057921,13.86396763,159.49,159.47,25.5]
[1749710058348,13.86396763,159.48,159.47,25.5]
[1749710058939,26.0,159.51,159.47,25.5]
[1749710059137,13.86396763,159.5,159.47,25.5]
[1749710060632,26.0,159.51,159.47,25.5]
[1749710060829,16.21243366,159.5,159.47,25.5]
[1749710061032,13.86396763,159.49,159.47,25.5]
[1749710066653,13.86396763,159.51,159.47,25.5]
[1749710067026,13.86396763,159.52,159.47,39.36396763]
[1749710067334,13.86396763,159.53,159.48,13.86396763]
[1749710067536,13.86396763,159.53,159.49,13.86396763]
[1749710067839,13.86396763,159.53,159.5,30.94]
[1749710068048,4.67053669,159.54,159.5,30.94]
[1749710068350,13.86396763,159.53,159.5,30.94]
[1749710069829,4.67053669,159.54,159.5,30.94]
[1749710070046,13.86396763,159.53,159.5,30.94]
[1749710073141,13.86396763,159.55,159.51,13.86396763]
[1749710073456,13.86396763,159.54,159.52,25.5]
[1749710077840,13.86396763,159.53,159.52,25.5]
[1749710078552,13.86396763,159.54,159.52,25.5]
[1749710080448,13.86396763,159.53,159.5,30.94]
[1749710080651,13.86396763,159.51,159.5,5.44]
[1749710082738,26.0,159.53,159.5,5.44]
[1749710082935,13.86396763,159.51,159.5,5.44]
[1749710095180,4.67908328,159.52,159.5,5.44]
[1749710095341,13.86396763,159.51,159.5,5.44]
[1749710096952,13.86396763,159.52,159.5,5.44]
[1749710097364,39.86396763,159.53,159.5,5.44]
[1749710099952,4.68420385,159.52,159.5,5.44]
[1749710100147,39.86396763,159.53,159.5,5.44]
[1749710100348,4.68468636,159.52,159.5,5.44]
[1749710100664,39.86396763,159.53,159.5,5.44]
[1749710101169,4.68470489,159.52,159.5,5.44]
[1749710101355,39.86396763,159.53,159.5,5.44]
[1749710101559,4.68464649,159.52,159.51,25.5]
[1749710104050,8.84849303,159.53,159.51,25.5]
[1749710105548,8.84849303,159.52,159.5,5.44]
[1749710105753,8.84849303,159.51,159.5,5.44]
[1749710106561,13.53506296,159.51,159.5,5.44]
[1749710107380,18.51547139,159.51,159.5,5.44]
[1749710109193,17.52311566,159.51,159.5,5.44]
[1749710110179,25.31771508,159.51,159.5,5.44]
[1749710111474,26.0,159.48,159.44,5.42]
[1749710111674,13.82890146,159.45,159.44,5.42]
[1749710115178,46.10045994,159.45,159.44,5.42]
[1749710115873,39.82890146,159.45,159.44,5.42]
[1749710118489,46.10045994,159.45,159.44,5.42]
[1749710120081,20.38478308,159.45,159.44,5.42]
[1749710120287,34.21368454,159.45,159.44,5.42]
[1749710120461,26.0,159.42,159.37,5.42]
[1749710120663,13.82890146,159.38,159.37,5.42]
[1749710121665,13.82890146,159.39,159.37,5.42]
[1749710122686,13.82890146,159.41,159.37,19.24890146]
[1749710122885,39.82890146,159.42,159.37,19.24890146]
[1749710123091,26.0,159.42,159.38,13.82890146]
[1749710123268,26.0,159.42,159.39,13.82890146]
[1749710123467,1.6645,159.46,159.4,25.5]
[1749710123468,39.82890146,159.44,159.4,25.5]
[1749710123668,1.6645,159.46,159.4,39.32890146]
[1749710123978,13.82890146,159.44,159.4,39.32890146]
[1749710124493,13.82890146,159.44,159.4,25.5]
[1749710128774,13.82890146,159.43,159.4,25.5]
[1749710129374,13.82890146,159.41,159.39,25.5]
[1749710129575,13.82890146,159.42,159.39,25.5]
[1749710129989,26.0,159.44,159.39,25.5]
[1749710130192,13.82890146,159.43,159.39,39.32890146]
[1749710132395,13.82890146,159.43,159.4,25.5]
[1749710133673,13.82890146,159.45,159.4,39.32890146]
[1749710133880,13.82890146,159.44,159.4,39.32890146]
[1749710134503,13.82890146,159.44,159.4,25.5]
[1749710136301,13.82890146,159.42,159.4,25.5]
[1749710136603,13.82890146,159.42,159.41,25.5]
[1749710136901,26.0,159.46,159.41,25.5]
[1749710136902,13.82890146,159.43,159.41,25.5]
[1749710137608,13.82890146,159.42,159.37,5.42]
[1749710137784,13.82890146,159.41,159.38,25.5]
[1749710138505,13.82890146,159.41,159.37,19.24890146]
[1749710138807,13.82890146,159.41,159.38,25.5]
[1749710138980,13.82890146,159.43,159.38,39.32890146]
[1749710140181,13.82890146,159.42,159.38,39.32890146]
[1749710141009,13.82890146,159.43,159.38,39.32890146]
[1749710142903,13.82890146,159.42,159.38,39.32890146]
[1749710143087,13.82890146,159.42,159.38,25.5]
[1749710143505,13.82890146,159.42,159.39,5.42]
[1749710144805,13.82890146,159.41,159.39,5.42]
[1749710147491,13.82890146,159.41,159.39,30.92]
[1749710148186,13.82890146,159.41,159.4,25.5]
[1749710151294,13.82890146,159.41,159.39,30.92]
[1749710151497,13.82890146,159.4,159.39,30.92]
[1749710154499,21.76394759,159.44,159.39,30.92]
[1749710154500,13.82890146,159.41,159.39,30.92]
[1749710157401,13.82890146,159.4,159.39,30.92]
[1749710159308,8.86227046,159.4,159.39,30.92]
[1749710159513,8.86227046,159.41,159.39,30.92]
[1749710159814,2.34653546,159.43,159.39,30.92]
[1749710160030,4.69329621,159.42,159.39,30.92]
[1749710160194,4.69329621,159.41,159.39,30.92]
[1749710160398,8.86227046,159.42,159.39,30.92]
[1749710160822,8.86227046,159.4,159.39,30.92]
[1749710161207,13.55573733,159.4,159.39,5.42]
[1749710162729,15.90178207,159.4,159.39,5.42]
[1749710162901,15.90177438,159.4,159.39,5.42]
[1749710163409,15.90176697,159.4,159.39,5.42]
[1749710163614,15.90172198,159.4,159.39,5.42]
[1749710163834,13.55573733,159.4,159.39,5.42]
[1749710164531,4.69346687,159.4,159.39,30.92]
[1749710164825,2.34626419,159.42,159.39,30.92]
[1749710164998,4.69053325,159.41,159.39,39.78227046]
[1749710165193,16.18759439,159.44,159.39,44.76129944]
[1749710165394,20.87824648,159.43,159.39,44.76129944]
[1749710165628,4.69058182,159.42,159.39,44.76129944]
[1749710165807,13.84129944,159.43,159.39,44.76129944]
[1749710166129,4.69028436,159.42,159.39,44.76129944]
[1749710166307,13.84129944,159.43,159.39,44.76129944]
[1749710166629,4.69039972,159.42,159.39,44.76129944]
[1749710166807,16.18843261,159.43,159.39,44.76129944]
[1749710167124,4.6908108,159.42,159.39,44.76129944]
[1749710167325,13.84129944,159.43,159.39,44.76129944]
[1749710167525,4.69093547,159.42,159.39,44.76129944]
[1749710167725,13.84129944,159.43,159.39,44.76129944]
[1749710167922,4.69134806,159.42,159.39,44.76129944]
[1749710168126,13.84129944,159.43,159.39,44.76129944]
[1749710168307,4.69146579,159.42,159.39,44.76129944]
[1749710168625,13.84129944,159.43,159.39,44.76129944]
[1749710168828,4.69134704,159.42,159.39,44.76129944]
[1749710169007,16.18931861,159.43,159.39,44.76129944]
[1749710169207,4.69134704,159.42,159.39,44.76129944]
[1749710169416,13.84129944,159.43,159.39,44.76129944]
[1749710169614,4.69142481,159.42,159.39,44.76129944]
[1749710169811,13.84129944,159.43,159.39,44.76129944]
[1749710170113,4.69132829,159.42,159.39,44.76129944]
[1749710170321,13.84129944,159.43,159.39,44.76129944]
[1749710170500,4.69138022,159.42,159.39,44.76129944]
[1749710170702,13.84129944,159.43,159.39,44.76129944]
[1749710170900,4.69143723,159.42,159.39,44.76129944]
[1749710171129,13.84129944,159.43,159.39,30.92]
[1749710171428,4.69153618,159.42,159.39,44.76129944]
[1749710171606,13.84129944,159.43,159.39,44.76129944]
[1749710171929,4.69156632,159.42,159.39,44.76129944]
[1749710172106,13.84129944,159.43,159.39,44.76129944]
[1749710172308,4.69166449,159.42,159.39,44.76129944]
[1749710172532,13.84129944,159.43,159.39,44.76129944]
[1749710172718,4.69174779,159.42,159.39,44.76129944]
[1749710172915,13.84129944,159.45,159.4,13.84129944]
[1749710173217,1.79892314,159.48,159.4,13.84129944]
[1749710173218,18.53263489,159.44,159.41,25.5]
[1749710173418,13.84129944,159.44,159.41,25.5]
[1749710176040,13.84129944,159.43,159.41,25.5]
[1749710176742,13.84129944,159.44,159.41,25.5]
[1749710178105,2.34826159,159.46,159.41,25.5]
[1749710178334,13.84129944,159.44,159.41,25.5]
[1749710178736,13.84129944,159.46,159.41,39.34129944]
[1749710179014,7.03826825,159.45,159.43,13.84129944]
[1749710179236,2.34844864,159.46,159.44,39.34129944]
[1749710179414,16.18946153,159.48,159.45,25.48]
[1749710179613,13.84129944,159.46,159.45,25.48]
[1749710179810,20.87882969,159.46,159.43,25.48]
[1749710180005,13.84129944,159.44,159.41,25.48]
[1749710180315,13.84129944,159.43,159.41,25.48]
[1749710182822,13.84129944,159.42,159.4,25.48]
[1749710183017,13.84129944,159.41,159.39,5.42]
[1749710183238,13.84129944,159.4,159.39,30.9]
[1749710184114,13.84129944,159.4,159.39,5.42]
[1749710184314,13.84129944,159.41,159.39,30.9]
[1749710184717,13.84129944,159.4,159.39,30.9]
[1749710185522,13.84129944,159.4,159.39,5.42]
[1749710185841,18.53140437,159.4,159.39,5.42]
[1749710186324,20.88062307,159.4,159.39,5.42]
[1749710186522,20.88066227,159.4,159.39,5.42]
[1749710186842,20.88067429,159.4,159.39,5.42]
[1749710187212,20.88068655,159.4,159.39,5.42]
[1749710187410,20.88077068,159.4,159.39,5.42]
[1749710187710,20.88072083,159.4,159.39,5.42]
[1749710187918,18.53140437,159.4,159.39,5.42]
[1749710188144,20.88072083,159.4,159.39,5.42]
[1749710188316,24.80493009,159.4,159.39,5.42]
[1749710188521,27.15431343,159.4,159.39,5.42]
[1749710189034,20.88078771,159.4,159.39,5.42]
[1749710189420,20.88079973,159.4,159.39,5.42]
[1749710189739,18.53140437,159.4,159.39,5.42]
[1749710189943,20.88066599,159.4,159.39,5.42]
[1749710190451,18.53140437,159.4,159.39,5.42]
[1749710190620,20.88055152,159.4,159.39,5.42]
[1749710191021,18.53140437,159.4,159.39,5.42]
[1749710191218,20.88058616,159.4,159.39,5.42]
[1749710191416,20.88053809,159.4,159.39,5.42]
[1749710191648,20.88034925,159.4,159.39,5.42]
[1749710192542,20.88017633,159.4,159.39,5.42]
[1749710192740,18.53140437,159.4,159.39,5.42]
[1749710192943,20.88017633,159.4,159.39,5.42]
[1749710193162,20.88018835,159.4,159.39,5.42]
[1749710193959,20.87999392,159.4,159.39,5.42]
[1749710194241,18.53140437,159.4,159.39,5.42]
[1749710194442,20.88009005,159.4,159.39,5.42]
[1749710194650,20.87983324,159.4,159.39,5.42]
[1749710194954,18.53140437,159.4,159.39,5.42]
[1749710195138,20.87982915,159.4,159.39,5.42]
[1749710195340,18.53140437,159.4,159.39,5.42]
[1749710195537,20.87982915,159.4,159.39,5.42]
[1749710195735,7.03852971,159.4,159.39,5.42]
[1749710195939,4.69010493,159.4,159.39,5.42]
[1749710196238,13.84129944,159.43,159.39,5.42]
[1749710196550,4.68384059,159.42,159.39,44.76129944]
[1749710196747,13.84129944,159.4,159.39,30.92]
[1749710196928,13.84129944,159.4,159.36,5.42]
[1749710196929,18.52523573,159.4,159.36,5.42]
[1749710197129,13.84129944,159.39,159.36,5.42]
[1749710198054,13.84129944,159.38,159.36,5.42]
[1749710200639,13.84129944,159.37,159.36,5.42]
[1749710202348,13.84129944,159.38,159.36,5.42]
[1749710202854,13.84129944,159.39,159.36,5.42]
[1749710203555,13.84129944,159.38,159.36,5.42]
[1749710205357,13.84129944,159.37,159.36,5.42]
[1749710205954,13.84129944,159.38,159.36,5.42]
[1749710209366,13.84129944,159.39,159.36,5.42]
[1749710216672,13.84129944,159.4,159.36,19.26129944]
[1749710216972,1.5844,159.45,159.38,13.84129944]
[1749710217162,13.84129944,159.43,159.39,39.34129944]
[1749710217364,4.6800823,159.43,159.39,39.34129944]
[1749710218277,18.52138174,159.43,159.39,39.34129944]
[1749710218447,13.84129944,159.43,159.39,39.34129944]
[1749710218779,18.52138174,159.43,159.39,39.34129944]
[1749710219073,13.84129944,159.43,159.39,39.34129944]
[1749710219460,13.84129944,159.43,159.39,25.5]
[1749710219659,13.84129944,159.42,159.39,25.5]
[1749710220185,13.84129944,159.4,159.38,25.5]
[1749710220754,13.84129944,159.39,159.37,25.5]
[1749710220968,13.84129944,159.39,159.36,5.42]
[1749710221156,13.84129944,159.39,159.36,30.92]
[1749710221785,13.84129944,159.38,159.36,5.42]
[1749710222780,13.84129944,159.37,159.36,5.42]
[1749710223151,13.84129944,159.38,159.36,5.42]
[1749710225272,4.68635228,159.37,159.36,5.42]
[1749710225574,18.52765172,159.37,159.36,5.42]
[1749710226174,4.68635228,159.37,159.36,5.42]
[1749710227375,18.52765172,159.37,159.36,5.42]
[1749710230988,4.68635228,159.37,159.36,5.42]
[1749710231186,18.52765172,159.37,159.36,5.42]
[1749710231866,4.68635228,159.37,159.36,5.42]
[1749710233089,8.17065238,159.42,159.36,19.26129944]
[1749710233289,4.69000896,159.41,159.37,39.34129944]
[1749710233473,4.69000896,159.4,159.37,39.34129944]
[1749710233676,13.84129944,159.42,159.37,39.34129944]
[1749710233873,18.53133498,159.41,159.37,25.5]
[1749710234073,4.69003554,159.4,159.37,25.5]
[1749710234369,13.84129944,159.41,159.37,39.34129944]
[1749710234582,4.68952527,159.4,159.37,39.34129944]
[1749710234894,13.84129944,159.41,159.37,39.34129944]
[1749710235095,4.68934101,159.4,159.37,39.34129944]
[1749710235397,13.84129944,159.41,159.37,39.34129944]
[1749710235568,4.68924256,159.4,159.37,39.34129944]
[1749710235763,13.84129944,159.41,159.37,39.34129944]
[1749710235994,4.68918869,159.4,159.37,39.34129944]
[1749710236291,13.84129944,159.41,159.37,39.34129944]
[1749710236486,4.68906931,159.4,159.37,39.34129944]
[1749710236694,13.84129944,159.41,159.37,39.34129944]
[1749710236877,4.68896174,159.4,159.37,39.34129944]
[1749710237083,13.84129944,159.41,159.37,39.34129944]
[1749710237388,4.68883361,159.4,159.37,39.34129944]
[1749710237570,13.84129944,159.41,159.37,39.34129944]
[1749710237974,13.84129944,159.41,159.37,25.5]
[1749710238678,4.68929069,159.4,159.37,25.5]
[1749710238891,13.84129944,159.41,159.37,25.5]
[1749710239091,4.6893867,159.4,159.37,25.5]
[1749710239269,13.84129944,159.41,159.37,25.5]
[1749710239466,4.68925031,159.4,159.37,25.5]
[1749710239698,13.84129944,159.41,159.37,25.5]
[1749710239876,4.68925168,159.4,159.37,25.5]
[1749710240076,13.84129944,159.41,159.37,25.5]
[1749710240409,4.68911311,159.4,159.37,25.5]
[1749710240704,13.84129944,159.41,159.37,25.5]
[1749710240878,4.68912726,159.4,159.37,25.5]
[1749710241207,13.84129944,159.41,159.37,25.5]
[1749710241415,4.68913949,159.4,159.37,25.5]
[1749710241699,13.84129944,159.41,159.37,25.5]
[1749710241866,4.68915246,159.4,159.37,25.5]
[1749710242075,13.84129944,159.41,159.37,25.5]
[1749710242274,4.68902924,159.4,159.37,25.5]
[1749710242499,13.84129944,159.41,159.37,25.5]
[1749710242678,4.68903738,159.4,159.37,25.5]
[1749710242882,13.84129944,159.41,159.37,25.5]
[1749710243090,18.53036253,159.4,159.37,25.5]
[1749710243274,13.84129944,159.4,159.37,25.5]
[1749710245296,13.84129944,159.39,159.37,25.5]
[1749710245510,13.84129944,159.4,159.37,25.5]
[1749710248977,18.52916907,159.39,159.36,5.42]
[1749710249183,13.84129944,159.39,159.36,5.42]
[1749710249793,13.84129944,159.4,159.36,5.42]
[1749710250101,13.84129944,159.4,159.36,30.9]
[1749710250705,13.84129944,159.39,159.36,30.9]
[1749710251504,13.84129944,159.38,159.36,30.9]
[1749710253087,13.84129944,159.39,159.36,30.9]
[1749710256179,1.5793,159.44,159.38,13.84129944]
[1749710256395,13.84129944,159.43,159.38,39.36129944]
[1749710257012,17.76362717,159.44,159.39,13.84129944]
[1749710257224,2.34302773,159.44,159.4,39.36129944]
[1749710257386,2.34315212,159.45,159.41,13.84129944]
[1749710257582,2.34306055,159.45,159.41,13.84129944]
[1749710257818,39.84129944,159.46,159.41,13.84129944]
[1749710257983,2.34306064,159.45,159.41,13.84129944]
[1749710258191,13.84129944,159.45,159.41,13.84129944]
[1749710258504,39.84129944,159.45,159.41,13.84129944]
[1749710258892,39.84129944,159.45,159.4,25.52]
[1749710259098,39.84129944,159.45,159.4,39.36129944]
[1749710260116,26.0,159.45,159.4,39.36129944]
[1749710260323,39.84129944,159.45,159.4,39.36129944]
[1749710261809,13.84129944,159.44,159.4,39.36129944]
[1749710262308,13.84129944,159.43,159.4,25.52]
[1749710267223,0.28432314,159.47,159.4,25.52]
[1749710267224,13.84129944,159.44,159.4,25.52]
[1749710267399,0.28432314,159.47,159.42,13.84129944]
[1749710267400,2.34082785,159.47,159.42,13.84129944]
[1749710267595,13.84129944,159.47,159.43,39.32129944]
[1749710267918,39.84129944,159.47,159.43,39.32129944]